Cogmind - Beta 16.1 @@@ ROGUE MODE // 2026.04.08 @ 14:55:15 Player: littleman Result: Destroyed by L-31 Rogue with Katana Performance ------------- Evolutions (1) 500 Regions Visited (3) 600 Robots Destroyed (19) 95 Value Destroyed (426) 426 Prototype IDs (0) 0 Alien Tech Used (0) 0 Bonus (0) 0 TOTAL SCORE: 1621 Bonus ------- None Cogmind --------- Core Integrity 0/400 Matter 290/300 Energy 100/100 System Corruption 0% Temperature Cool (9) Movement Core (200) Ox3 Location -9/Materials Parts ------- > --- POWER (1) -------- (None) > --- PROPULSION (2) --- (None) > --- UTILITY (3) ------ Small Storage Unit Hardened Light Armor Plating > --- WEAPON (3) ------- (None) > --- INVENTORY (8) ---- Light Nuclear Core Improved Signal Interpreter Improved Terrain Scanner Improved Terrain Scan Processor Tractor Beam Peak State ------------ > --- POWER ------------ Light Nuclear Core > --- PROPULSION ------- Aluminum Leg Aluminum Leg > --- UTILITY ---------- Small Storage Unit Improved Trap Extractor > --- WEAPON ----------- Ion Cannon Ion Cannon > --- INVENTORY -------- Improved Terrain Scanner Improved Terrain Scan Processor Insulated Plating Tractor Beam Medium Laser Beam Cannon Grenade Launcher Mining Laser [Rating: 17] Favorites ----------- Power Light Nuclear Core Engine Light Ion Engine Power Core Light Nuclear Core Propulsion Aluminum Leg Leg Aluminum Leg Utility Small Storage Unit Device Improved Trap Extractor Storage Small Storage Unit Protection Insulated Plating Weapon Ion Cannon Energy Gun Medium Laser Energy Cannon Ion Cannon Launcher Grenade Launcher Special Weapon Mining Laser Build | -11 -10 -10 -9 ------- Run | Yrd Mat Min Mat Slots Evolved 2 | . . . 2 Power . | . . . . Propulsion . | . . . . Utility 1 | . . . 1 Weapon 1 | . . . 1 Parts Attached 22 | 7 1 6 8 Power 5 | 1 . 2 2 Engine 4 | 1 . 1 2 Core 1 | . . 1 . Reactor . | . . . . Propulsion 4 | 2 . 1 1 Treads . | . . . . Leg 4 | 2 . 1 1 Wheel . | . . . . Hover . | . . . . Flight . | . . . . Utility 6 | 2 . 1 3 Device 2 | 1 . 1 . Storage 1 | 1 . . . Processor . | . . . . Hackware . | . . . . Protection 3 | . . . 3 Artifact . | . . . . Weapon 7 | 2 1 2 2 Energy Gun 2 | 2 . . . Energy Cannon 3 | . 1 2 . Ballistic Gun . | . . . . Ballistic Cannon . | . . . . Launcher 1 | . . . 1 Special Weapon 1 | . . . 1 Impact Weapon . | . . . . Slashing Weapon . | . . . . Piercing Weapon . | . . . . Special Melee Weapon . | . . . . Unidentified Prototypes . | . . . . Parts Lost 12 | . . 2 10 Power 2 | . . 1 1 Propulsion 3 | . . . 3 Utility 2 | . . . 2 Weapon 5 | . . 1 4 Highest Loss Streak 8 | . . 2 8 To Critical Strikes . | . . . . Average Backups 6 | . 3 7 5 Power . | . . . . Propulsion . | . . . . Utility 3 | . 1 3 3 Weapon 2 | . 1 3 1 Tool/Special . | . . . . Unused Backups 5 | . . 1 4 Power 1 | . . . 1 Propulsion . | . . . . Utility 3 | . . . 3 Weapon 1 | . . 1 . Tool/Special . | . . . . Average Slot Usage (%) 91 | . 100 98 75 Engine 5 | . 14 1 8 Core 7 | . . 12 . Leg 24 | . 28 27 17 Device 10 | . 14 14 1 Storage 13 | . 14 14 11 Protection 5 | . . . 17 Energy Gun 3 | . 25 . . Energy Cannon 21 | . 2 26 18 Peak Build Rating 17 | 9 9 17 16 Average Rating 14 | 5 9 16 13 On Entrance 7 | . 9 9 12 Avg Prop Armor Cover (%) 25 | . . . 25 Naked Turns . | . . . . Heaviest Build 27 | 12 14 25 27 Greatest Support 20 | 20 20 20 20 Greatest Overweight (x) 7 | . . 1 7 Average Overweight (x) . | . . . 1 Largest Inventory Capacity 8 | 8 8 8 8 Average Capacity 7 | 7 8 8 8 Most Carried 8 | 3 7 8 7 Average Carried 6 | . 3 7 5 Final Capacity 8 | 8 8 8 8 Final Carried 8 | 1 7 8 5 Class Distribution -------------------- 100% | Mutant Dominant Class ---------------- Mutant | -10/Materials Mutant | -10/Mines Mutant | -9/Materials Resources | -11 -10 -10 -9 ----------- Run | Yrd Mat Min Mat Matter Collected 563 | 270 . 75 218 Remotely . | . . . . Salvage Created 627 | 115 94 110 308 Parts 37 | 7 3 10 17 Haulers Intercepted . | . . . . Recyclers Shooed . | . . . . Parts Field Recycled . | . . . . Retrieved Matter . | . . . . Parts Self-Destructed . | . . . . Prevented . | . . . . Parts Restored . | . . . . Kills | -11 -10 -10 -9 ------- Run | Yrd Mat Min Mat Combat Hostiles Destroyed 15 | . 2 7 6 Guns 2 | . 2 . . Cannons 12 | . . 7 5 AOE 1 | . . . 1 Classes Destroyed 5 | 2 1 1 1 Tunneler 1 | 1 . . . Recycler 2 | 1 . . 1 Watcher 1 | . . . 1 Swarmer 7 | . . 7 . Grunt 8 | . 2 . 6 Best Kill Streak 3 | 2 1 2 3 Combat Bots Only 3 | . 1 2 3 Max Kills in Single Turn 2 | 1 1 1 2 Gunslinging . | . . . . Exploded 1 | . . . 1 Melee . | . . . . Uniques/NPCs Destroyed . | . . . . Combat | -11 -10 -10 -9 -------- Run | Yrd Mat Min Mat Hostile Shots Fired 226 | . 37 81 108 Missed 55 | . 15 20 20 Hits 171 | . 22 61 88 Melee 2 | . . . 2 Projectile 169 | . 22 61 86 Critical Strikes 4 | . . . 4 Damage Taken 1987 | . 255 490 1242 Core 585 | . 66 89 430 Absorbed by Shields . | . . . . Core Remaining (%) 69 | 100 . 38 . Volleys Fired 63 | 4 17 23 19 Largest 2 | 2 2 2 2 Hottest 130 | 90 90 120 130 Shots Fired 120 | 8 34 43 35 Gun 42 | 8 34 . . Cannon 74 | . . 43 31 Launcher 3 | . . . 3 Special 1 | . . . 1 Kinetic . | . . . . Thermal 117 | 8 34 43 32 Explosive 3 | . . . 3 Electromagnetic . | . . . . Robot Hit Streak 9 | 4 9 3 3 Robot Miss Streak 3 | 1 2 3 3 Penetration Max . | . . . . Secondary Targets . | . . . . Shots Hit Robots 67 | 6 26 17 18 Core Hits 26 | 3 7 6 10 Critical Kills . | . . . . Critical Parts Destroyed . | . . . . Critical Strikes . | . . . . Melee Attacks . | . . . . Impact . | . . . . Slashing . | . . . . Piercing . | . . . . Sneak Attacks . | . . . . Combat Hostiles . | . . . . Follow-up Attacks . | . . . . Damage Inflicted 1296 | 70 306 429 491 Guns 376 | 70 306 . . Cannons 723 | . . 417 306 Explosions 185 | . . . 185 Melee . | . . . . Ramming 12 | . . 12 . Kinetic . | . . . . Thermal 1099 | 70 306 417 306 Explosive 185 | . . . 185 Electromagnetic . | . . . . Impact . | . . . . Slashing . | . . . . Piercing . | . . . . Highest Corruption . | . . . . Average Corruption . | . . . . Corruption Purged . | . . . . Corruption Blocked . | . . . . Overload Shots . | . . . . Overflow Damage 49 | . . 12 37 Projectiles 21 | . . 12 9 Explosions 28 | . . . 28 Melee . | . . . . Knockbacks . | . . . . Impact . | . . . . Kinetic . | . . . . Secondary . | . . . . Self-Inflicted Damage 77 | . . . 77 Shots 2 | . . . 2 Rammed . | . . . . Targets Rammed 1 | . . 1 . Kicked 1 | . . 1 . Crushed . | . . . . Highest Temperature 490 | 90 426 386 490 Average Temperature 206 | 41 191 184 247 Received Heat Transfer 696 | . 141 . 555 Effects 12 | . 1 4 7 Shutdowns 2 | . . . 2 Energy Bleed 2 | . 1 . 1 Interference 3 | . . 3 . Matter Decay 3 | . . . 3 Short Circuit 1 | . . . 1 Damage (minor) 1 | . . 1 . Siege Activations . | . . . . Martial Activations . | . . . . Shielding Activations . | . . . . Robots Disrupted . | . . . . Combat Hostiles . | . . . . Robots Corrupted . | . . . . Combat Hostiles . | . . . . Parts Fried . | . . . . Impact Corruptions . | . . . . Robots Melted . | . . . . Combat Hostiles . | . . . . Parts Melted 4 | . 2 2 . Heat Transferred 2213 | 186 806 666 555 Parts Sabotaged . | . . . . Parts Stolen . | . . . . Parts Stripped . | . . . . Power Chain Reactions . | . . . . Alert | -11 -10 -10 -9 ------- Run | Yrd Mat Min Mat Maximum Alert Level . | . . . . Low Security (%) 100 | 100 100 100 100 Level 1 . | . . . . Level 2 . | . . . . Level 3 . | . . . . Level 4 . | . . . . Level 5 . | . . . . High Security . | . . . . Max Security . | . . . . Peak Influence 68 | 5 35 68 50 Initial 2 | . . . 2 Average 11 | . 8 15 8 Influence Increases 481 | 10 65 195 211 Destroy 0b10 Robot/C 300 | . 40 140 120 Destroy 0b10 Robot/NC 20 | 10 . . 10 Destroy Leader 52 | . 10 20 22 Disable Machine 15 | . . 15 . Destroy Structure 34 | . . 5 29 Lose Combat Pursuer 60 | . 15 15 30 Influence Decreases 462 | 10 65 188 199 Entered New Map 5 | . . . 5 Time Decay 347 | 10 65 168 104 Lost Part 110 | . . 20 90 Squads Dispatched 4 | . 1 . 3 Investigation 2 | . 1 . 1 Extermination . | . . . . Reinforcement 2 | . . . 2 Assault . | . . . . Garrison . | . . . . Intercept . | . . . . Searches Triggered . | . . . . Construction Impeded . | . . . . Haulers Reinforced . | . . . . Active Scanning Responses . | . . . . Cargo Convoy Interrupts . | . . . . Stealth | -11 -10 -10 -9 --------- Run | Yrd Mat Min Mat Distress Signals . | . . . . Communications Jammed . | . . . . Distress Signals . | . . . . Times Spotted 32 | . 5 9 18 Peak Tracking Total 6 | . 4 3 6 Tactical Retreats 3 | . 1 1 1 Traps | -11 -10 -10 -9 ------- Run | Yrd Mat Min Mat Traps Triggered 2 | . 1 1 . Indirectly . | . . . . Trap Hack Attempts . | . . . . Triggered . | . . . . Disarmed . | . . . . Reprogrammed . | . . . . Reused . | . . . . Traps Extracted . | . . . . Installed . | . . . . Triggered . | . . . . Machines | -11 -10 -10 -9 ---------- Run | Yrd Mat Min Mat Machines Disabled 1 | . . 1 . Max in Single Turn 1 | . . 1 . Machines Repaired . | . . . . Machines Dismantled . | . . . . Machines Sabotaged . | . . . . Overloaded Fab Kills . | . . . . Hacking | -11 -10 -10 -9 --------- Run | Yrd Mat Min Mat Machines Accessed 3 | . . 1 2 Terminals 1 | . . . 1 Fabricators . | . . . . Repair Stations . | . . . . Recycling Units . | . . . . Scanalyzers 1 | . . . 1 Garrison Access . | . . . . Total Hacks 7 | . . 1 6 Successful 5 | . . 1 4 Failed 2 | . . . 2 Catastrophic 1 | . . . 1 Database Lockouts . | . . . . Manual . | . . . . Terminals 3 | . . . 3 Fabricators . | . . . . Repair Stations . | . . . . Recycling Units . | . . . . Scanalyzers 3 | . . . 3 Garrison Access . | . . . . Terminal Hacks 2 | . . 1 1 Open Door 1 | . . 1 . Recall Reinforcements 1 | . . . 1 Fabricator Hacks . | . . . . Repair Station Hacks . | . . . . Recycling Unit Hacks . | . . . . Scanalyzer 3 | . . . 3 Insert Component 1 | . . . 1 Analyze 1 | . . . 1 Retrieve Study 1 | . . . 1 Garrison Access Hacks . | . . . . Unauthorized Hacks . | . . . . Terminals . | . . . . Fabricators . | . . . . Repair Stations . | . . . . Recycling Units . | . . . . Scanalyzers . | . . . . Garrison Access . | . . . . Data Cores Recovered . | . . . . Used . | . . . . Hacking Detections 2 | . . . 2 Full Trace Events 1 | . . . 1 Feedback Events . | . . . . Feedback Blocked . | . . . . Robot Schematics Acquired . | . . . . Robots Built . | . . . . Authchips . | . . . . Time . | . . . . Total Robot Build Rating . | . . . . Part Schematics Acquired 1 | . . . 1 Parts Built . | . . . . Authchips . | . . . . Time . | . . . . Total Part Build Rating . | . . . . Part Studies Acquired . | . . . . Parts Repaired . | . . . . Time . | . . . . Parts Recycled . | . . . . Recycled Matter . | . . . . Retrieved Matter . | . . . . Retrieved Components . | . . . . Parts Scanalyzed 1 | . . . 1 Part Schematics Acquired 1 | . . . 1 Parts Damaged . | . . . . Bothacking | -11 -10 -10 -9 ------------ Run | Yrd Mat Min Mat Used RIF Installer . | . . . . Robots Hacked . | . . . . Non-combat . | . . . . Combat . | . . . . Robot Hacks Applied . | . . . . Relay Couplers Released . | . . . . Fabnet Peak Effective % . | . . . . Robots Rewired . | . . . . Allies Hacked . | . . . . Hacks Repelled . | . . . . Allies | -11 -10 -10 -9 -------- Run | Yrd Mat Min Mat Total Allies . | . . . . Largest Group . | . . . . Highest-Rated Group . | . . . . Highest-Rated Ally . | . . . . Total Orders . | . . . . Ally Attacks . | . . . . Total Damage . | . . . . Kills . | . . . . Allies Corrupted . | . . . . Allies Melted . | . . . . Intel | -11 -10 -10 -9 ------- Run | Yrd Mat Min Mat Active Infowar (turns) 274 | 26 236 12 . Terrain 274 | 26 236 12 . Robot Analysis Total . | . . . . Derelict Logs Recovered . | . . . . Drone Launches . | . . . . Drone Recoveries . | . . . . Exploration | -11 -10 -10 -9 ------------- Run | Yrd Mat Min Mat Turns Passed 1982 | 81 236 1105 560 Spaces Moved 813 | 49 127 382 255 Core 62 | 6 . . 56 Treads . | . . . . Legs 751 | 43 127 382 199 Wheels . | . . . . Hover . | . . . . Flight . | . . . . Fastest Speed 50 | 50 120 120 100 Average Speed 163 | 111 120 175 177 Slowest Speed 400 | 120 120 190 400 Overloaded Moves . | . . . . Propulsion Burnouts . | . . . . Robots Hopped . | . . . . Potential Cave-ins . | . . . . Cave-ins Triggered . | . . . . Exploration Rate (%) 32 | 3 24 68 34 Regions Visited 3 Branch Regions 1 Pre-discovered Areas . | . . . . Known Exits Taken . | . . . . Unknown Exits Taken 3 | 1 1 1 . Scrap Searched 1 | . . 1 . Spaces Dug . | . . . . Terrain Destroyed 30 | . . 5 25 Melee . | . . . . Projectile 9 | . . 5 4 AOE 21 | . . . 21 Terrain Rammed . | . . . . Walls Destroyed . | . . . . Machines Disabled . | . . . . Actions | -11 -10 -10 -9 --------- Run | Yrd Mat Min Mat Total 1335 | 67 175 771 322 Wait 405 | . 24 350 31 Move 810 | 48 126 381 255 Hop . | . . . . Pick Up 27 | 8 6 7 6 Fast Attach . | . . . . Attach 17 | 7 . 3 7 Detach . | . . . . Swap 7 | . 2 3 2 Drop 5 | . . 3 2 Fire 63 | 4 17 23 19 Melee . | . . . . Ram . | . . . . Kick 1 | . . 1 . Crush . | . . . . Escape Stasis . | . . . . Rewire . | . . . . Trap . | . . . . Miscellaneous . | . . . . Route ------- -11/Scrapyard -10/Materials -10/Mines -9/Materials History --------- Turn | Location | Event 7 | -11/Scrapyard | Discovered new exit (range 15) 82 | -11/Scrapyard | Entered Materials 300 | -10/Materials | Discovered new exit (range 8) 318 | -10/Materials | Build established: Mutant 318 | -10/Materials | Entered Mines 326 | -10/Mines | Met a Derelict who couldn't figure out how to use a Trap Extractor 391 | -10/Mines | Assembled infested the area 1314 | -10/Mines | Core integrity fell below 50% 1402 | -10/Mines | Discovered new exit (range 10) 1417 | -10/Mines | Received a Rocket Launcher from a helpful Derelict 1423 | -10/Mines | Entered Materials 1423 | -9/Materials | Evolved 2 slots: Utility x1, Weapon x1 1923 | -9/Materials | Core integrity fell below 50% 1935 | -9/Materials | Core integrity fell below 20% 1953 | -9/Materials | Lost 8 parts (2n2u4w) 1983 | -9/Materials | Destroyed by L-31 Rogue with Katana Last Messages --------------- Acquired 12 matter. K-01 Serf collects debris. Acquired 62 matter. Critical hit (Burn: +37). Broken Aluminum Leg destroyed. K-01 Serf collects debris. The unstable cave ceiling collapses. K-01 Serf collects debris. The unstable cave ceiling collapses. ALERT: Hostiles spotted, dispatching reinforcements to Terminal M008. R-06 Scavenger collects Lgt. Deuterium Engine. K-01 Serf collects debris. Connecting with Terminal... >>Recall(Reinforcements) Establishing remote squad link... Recalled reinforcement squad 27BRYVG8R9. ALERT: Suspicious activity at Terminal M005. Dispatching Investigation squad. Acquired Hrd. Light Armor Plating. Map ----- +----------------------------------------------------+ | | | | | | | | | | | | | | | | | | | | | ?????????????????????????????????????????????? | | ?????????????????????????????????????????????? | | ?????????????????????????????????????????????? | | ?????????????????????????????????????????????? | | ?????????????????????????????????????????????? | | ?????????????????????????????????????????????? | | ?????????????????????????????????????????????? | | ?????????????????????????????????????????????? | | ?????????????????????????????????????????????? | | ?????????????????????????????????????????????? | | ?????????????????????????????????????????????? | | ?????????????????????????????????????????????? | | ???????????????????????##+##?????????????????? | | ????????????????######## ##????????????????? | | ????????????????? +????????????????? | | ??????????????????????# @ #?????????????????? | | ??????????????????????# kl #?????????????????? | | ??????????????????????# #?????????? ??????? | | ??????????????????????# #????????? #?????? | | ??????????????? "????# g##??????? #?????? | | ??????????????? """??# ###+### ?????? | | ?????????????# """ # #????? | | ?????????????# + #????? | | ?????????????# """ # #????? | | ??????????????? """??# #????? | | ??????????????? "????## """"" #?????? | | ???????????????????????# """"" ??????? | | ???????????############# g! """"" #?????? | | ???????????# #Yk!! +?????? | | ???????????# # g! #?????? | | ???????????# + #?????? | | ???????????# """ """ # #?????? | | ???????????# """ """ # ######### #?????? | | ???????????# """ """ # #????????? #?????? | | ???????????# # #?????????? ??????? | | ???????????######+###### #?????????????????? | | ??????######????# #????# #?????????????????? | | ??????# ???# #????# #?????????????????? | | ??????# ??# #????# ##????????????????? | | ??????+ ! ## ##### #????????????????? | +----------------------------------------------------+ Best States ------------- Heat Dissipation 28 Energy Generation 14 Energy Capacity 160 Matter Stores 300 Matter Capacity 300 Sight Range 16 Terrain Scan Range 16 Terrain Scan Density 10 Armor Coverage 300 Resistance: EM 15 Evasion (%) 55 Trap Extractor Capacity 6 Item Schematics ----------------- Imp. Signal Interpreter | -9/Materials | Scanalyzed Robot Schematics ------------------ None Fabricated ------------ Nothing Repaired ---------- Nothing Studied --------- None Alien Tech Used ----------------- None Achievements -------------- None Challenges ------------ None Game ------ Seed MomentumVortexNukerbomber Manual? 0 Play Time 00:16:25 Cumulative 64.9 hours Start 2026.04.08 @ 14:38:12 End 2026.04.08 @ 14:55:15 Sessions 1 Manual Loads 0 Difficulty Rogue Special Mode None Game No. 12 Rogue 11 Adventurer 1 Explorer 0 Win Type - Total 0 Types 0/0/0/0/0/0/0/0/0/0 Lore% 5 Gallery% 19 Achievement% 19 Wizard Run 0 Options --------- Layout 1 ASCII 0 Keyboard 0 Movement Mouse Keybinds 0 Fullscreen 1 Font 24/Smallcaps Map View 50x35 Zoom Use 0% Tactical HUD 0 Map Filters NONE Filters NONE Steam 1 RUN: 242cea8c-3a2b-4744-80a0-f792013ab2dd